[Event "Early-Titled-Tuesday-Blitz-June-18-2024"]
[Site "Chess.com"]
[Date "2024.06.18"]
[Round "4"]
[White "Bigfish1995"]
[Black "the_chess_child"]
[Result "1-0"]
[WhiteElo "3135"]
[BlackElo "2876"]
[TimeControl "180+1"]
[EndTime "8:42:46 PDT"]
[Termination "Bigfish1995 won by resignation"]

1. Nf3 {[%clk 0:03:00.9]} 1... Nf6 {[%clk 0:02:58.2]} 2. b3 {[%clk 0:03:00.1]}
2... g6 {[%clk 0:02:58.7]} 3. Bb2 {[%clk 0:02:59.9]} 3... Bg7 {[%clk 0:02:59.4]}
4. d4 {[%clk 0:02:58.8]} 4... O-O {[%clk 0:02:59.2]} 5. Nbd2 {[%clk 0:02:58.9]}
5... c5 {[%clk 0:02:55.9]} 6. dxc5 {[%clk 0:02:57.7]} 6... Qa5 {[%clk
0:02:55.4]} 7. e3 {[%clk 0:02:35]} 7... Qxc5 {[%clk 0:02:51.7]} 8. Bd3 {[%clk
0:02:33.6]} 8... Nc6 {[%clk 0:02:50.3]} 9. O-O {[%clk 0:02:32.8]} 9... e5 {[%clk
0:02:47.3]} 10. c4 {[%clk 0:02:28]} 10... Re8 {[%clk 0:02:23.9]} 11. Ng5 {[%clk
0:02:16.4]} 11... d5 {[%clk 0:02:14.2]} 12. cxd5 {[%clk 0:02:13.1]} 12... Nxd5
{[%clk 0:01:47.2]} 13. Nde4 {[%clk 0:02:09.3]} 13... Qe7 {[%clk 0:00:56.2]} 14.
Bc4 {[%clk 0:02:05.8]} 14... Be6 {[%clk 0:00:55.3]} 15. Bxd5 {[%clk 0:02:00.1]}
15... Red8 {[%clk 0:00:51.3]} 16. Nxe6 {[%clk 0:00:57.1]} 16... fxe6 {[%clk
0:00:50.9]} 17. Ba3 {[%clk 0:00:56.9]} 17... Qxa3 {[%clk 0:00:21.2]} 18. Bxe6+
{[%clk 0:00:57]} 18... Kh8 {[%clk 0:00:21.8]} 19. Qg4 {[%clk 0:00:57.3]} 19...
Qe7 {[%clk 0:00:21]} 20. Ng5 {[%clk 0:00:57.2]} 20... Rf8 {[%clk 0:00:21]} 21.
Bd5 {[%clk 0:00:55.5]} 21... Rf5 {[%clk 0:00:18.2]} 22. Ne6 {[%clk 0:00:53.3]}
22... Bf6 {[%clk 0:00:16]} 23. Rad1 {[%clk 0:00:46.6]} 23... Nb4 {[%clk
0:00:15.7]} 24. e4 {[%clk 0:00:28.5]} 24... Rh5 {[%clk 0:00:13.3]} 25. a3 {[%clk
0:00:25.4]} 25... Nxd5 {[%clk 0:00:10.5]} 26. exd5 {[%clk 0:00:26.3]} 26... Rh4
{[%clk 0:00:11]} 27. Qf3 {[%clk 0:00:25.3]} 27... e4 {[%clk 0:00:09.2]} 28. Qe3
{[%clk 0:00:25.3]} 28... Be5 {[%clk 0:00:09.5]} 29. g3 {[%clk 0:00:25.9]} 29...
Rh5 {[%clk 0:00:09.4]} 30. b4 {[%clk 0:00:21.3]} 30... Bd6 {[%clk 0:00:09.2]}
31. Qxe4 {[%clk 0:00:20.1]} 31... Kg8 {[%clk 0:00:09.3]} 32. Rfe1 {[%clk
0:00:19.5]} 32... Re8 {[%clk 0:00:09.2]} 33. Qd4 {[%clk 0:00:19.6]} 33... Qf7
{[%clk 0:00:08.6]} 34. Re3 {[%clk 0:00:19.5]} 34... Rf5 {[%clk 0:00:08.4]} 35.
f4 {[%clk 0:00:18.8]} 35... Bc7 {[%clk 0:00:05.9]} 36. Nxc7 {[%clk 0:00:17.8]}
36... Rxe3 {[%clk 0:00:06.1]} 37. Qxe3 {[%clk 0:00:18.4]} 37... Qxc7 {[%clk
0:00:06.7]} 38. d6 {[%clk 0:00:17.9]} 38... Qd7 {[%clk 0:00:07]} 39. Qxa7 {[%clk
0:00:18]} 39... g5 {[%clk 0:00:06.7]} 40. fxg5 {[%clk 0:00:17.7]} 40... Rxg5
{[%clk 0:00:07.2]} 41. Qe3 {[%clk 0:00:17.8]} 41... Rg6 {[%clk 0:00:07]} 42. Qd4
{[%clk 0:00:17.4]} 42... Re6 {[%clk 0:00:06.8]} 43. Qd5 {[%clk 0:00:17.4]} 43...
Kg7 {[%clk 0:00:06]} 44. Qg5+ {[%clk 0:00:12.4]} 44... Kh8 {[%clk 0:00:05.9]}
45. Qf4 {[%clk 0:00:11.6]} 45... h6 {[%clk 0:00:05.4]} 46. Rf1 {[%clk
0:00:10.8]} 46... Qxd6 {[%clk 0:00:05]} 47. Qxd6 {[%clk 0:00:10.5]} 47... Rxd6
{[%clk 0:00:05.9]} 48. Rf3 {[%clk 0:00:09.6]} 48... Kg7 {[%clk 0:00:06.2]} 49.
Kg2 {[%clk 0:00:08.5]} 49... Kg6 {[%clk 0:00:07.1]} 50. g4 {[%clk 0:00:08.3]}
50... b5 {[%clk 0:00:07.6]} 51. Kg3 {[%clk 0:00:07]} 51... Rd5 {[%clk
0:00:07.9]} 52. h4 {[%clk 0:00:06.9]} 52... Rd4 {[%clk 0:00:07.9]} 53. h5+
{[%clk 0:00:06.7]} 53... Kg7 {[%clk 0:00:08.5]} 54. Kh4 {[%clk 0:00:07]} 54...
Rd5 {[%clk 0:00:08.5]} 55. Rf5 {[%clk 0:00:07.1]} 55... Rd3 {[%clk 0:00:08.9]}
56. Rxb5 {[%clk 0:00:07.4]} 56... Rxa3 {[%clk 0:00:09.6]} 57. Rb7+ {[%clk
0:00:07.7]} 57... Kf6 {[%clk 0:00:10]} 58. Rb6+ {[%clk 0:00:07.8]} 58... Kg7
{[%clk 0:00:10.4]} 59. g5 {[%clk 0:00:06.2]} 59... hxg5+ {[%clk 0:00:09.8]} 60.
Kxg5 {[%clk 0:00:07.1]} 60... Rf3 {[%clk 0:00:09.9]} 61. h6+ {[%clk 0:00:06.9]}
61... Kh7 {[%clk 0:00:10.4]} 62. Rb7+ {[%clk 0:00:07.3]} 62... Kh8 {[%clk
0:00:11]} 63. b5 {[%clk 0:00:07]} 63... Rf8 {[%clk 0:00:11.1]} 64. b6 {[%clk
0:00:06.3]} 64... Rf3 {[%clk 0:00:10.7]} 65. Rc7 {[%clk 0:00:05.8]} 65... Rb3
{[%clk 0:00:06.4]} 66. b7 {[%clk 0:00:05.7]} 66... Kg8 {[%clk 0:00:07]} 67. Rc8+
{[%clk 0:00:05.4]} 67... Kh7 {[%clk 0:00:07.2]} 68. Rc7+ {[%clk 0:00:06]} 68...
Kh8 {[%clk 0:00:07.6]} 69. Kf4 {[%clk 0:00:05.5]} 69... Rb5 {[%clk 0:00:03.1]}
70. Rc8+ {[%clk 0:00:05.3]} 70... Kh7 {[%clk 0:00:03.7]} 71. b8=Q {[%clk
0:00:06]} 71... Rb6 {[%clk 0:00:04.5]} 72. Qc7+ {[%clk 0:00:05.3]} 1-0

[Event "Early-Titled-Tuesday-Blitz-June-18-2024"]
[Site "Chess.com"]
[Date "2024.06.18"]
[Round "4"]
[White "xasid81"]
[Black "FXDon77"]
[Result "1-0"]
[WhiteElo "2632"]
[BlackElo "2877"]
[TimeControl "180+1"]
[EndTime "8:42:46 PDT"]
[Termination "xasid81 won by checkmate"]

1. c4 {[%clk 0:02:58]} 1... e5 {[%clk 0:02:58.2]} 2. Nc3 {[%clk 0:02:56.4]} 2...
Bb4 {[%clk 0:02:56.9]} 3. Qc2 {[%clk 0:02:55.5]} 3... Nf6 {[%clk 0:02:51.9]} 4.
Nf3 {[%clk 0:02:54.8]} 4... d6 {[%clk 0:02:34.4]} 5. e3 {[%clk 0:02:54.1]} 5...
O-O {[%clk 0:02:32.9]} 6. Be2 {[%clk 0:02:51.9]} 6... Bxc3 {[%clk 0:02:30.2]} 7.
Qxc3 {[%clk 0:02:50]} 7... e4 {[%clk 0:02:30.5]} 8. Nd4 {[%clk 0:02:49.1]} 8...
Nbd7 {[%clk 0:02:30]} 9. d3 {[%clk 0:02:48.4]} 9... Ne5 {[%clk 0:02:27.2]} 10.
dxe4 {[%clk 0:02:41.5]} 10... Nxe4 {[%clk 0:02:28.1]} 11. Qc2 {[%clk 0:02:41.7]}
11... f5 {[%clk 0:02:22.7]} 12. O-O {[%clk 0:02:35.9]} 12... Qe7 {[%clk
0:02:15.1]} 13. b3 {[%clk 0:02:30.5]} 13... b6 {[%clk 0:02:14.1]} 14. Bb2 {[%clk
0:02:29.5]} 14... Bb7 {[%clk 0:02:14.6]} 15. f3 {[%clk 0:02:19.9]} 15... c5
{[%clk 0:01:40.8]} 16. Nxf5 {[%clk 0:01:57.4]} 16... Rxf5 {[%clk 0:01:35.2]} 17.
fxe4 {[%clk 0:01:57.6]} 17... Rxf1+ {[%clk 0:01:35.2]} 18. Rxf1 {[%clk
0:01:58.4]} 18... Qg5 {[%clk 0:01:35.6]} 19. Rf4 {[%clk 0:01:52]} 19... Ng6
{[%clk 0:01:28.1]} 20. Rf3 {[%clk 0:01:31.1]} 20... Re8 {[%clk 0:01:27.9]} 21.
Qc3 {[%clk 0:01:23.6]} 21... Ne5 {[%clk 0:01:21.7]} 22. Rg3 {[%clk 0:01:22.1]}
22... Qe7 {[%clk 0:01:18.5]} 23. Qc2 {[%clk 0:01:09]} 23... Ng6 {[%clk
0:01:16.1]} 24. Bf3 {[%clk 0:01:02.1]} 24... Bxe4 {[%clk 0:01:04.3]} 25. Bxe4
{[%clk 0:00:58]} 25... Qxe4 {[%clk 0:01:05.2]} 26. Qxe4 {[%clk 0:00:54.2]} 26...
Rxe4 {[%clk 0:01:04.1]} 27. Kf2 {[%clk 0:00:54.1]} 27... Re7 {[%clk 0:00:57.4]}
28. Rg5 {[%clk 0:00:53.1]} 28... Kf7 {[%clk 0:00:56.1]} 29. Rd5 {[%clk
0:00:46.6]} 29... Ke6 {[%clk 0:00:53.3]} 30. g3 {[%clk 0:00:43.6]} 30... b5
{[%clk 0:00:48.8]} 31. e4 {[%clk 0:00:38.5]} 31... bxc4 {[%clk 0:00:48.3]} 32.
bxc4 {[%clk 0:00:39.4]} 32... Rb7 {[%clk 0:00:48.4]} 33. Bc3 {[%clk 0:00:37.3]}
33... Rf7+ {[%clk 0:00:42.1]} 34. Ke2 {[%clk 0:00:35.4]} 34... Ne7 {[%clk
0:00:41.6]} 35. Rd1 {[%clk 0:00:33.2]} 35... Nc6 {[%clk 0:00:40.5]} 36. Rd5
{[%clk 0:00:22.9]} 36... g6 {[%clk 0:00:33.3]} 37. h4 {[%clk 0:00:22.5]} 37...
a6 {[%clk 0:00:29.9]} 38. h5 {[%clk 0:00:22]} 38... Rb7 {[%clk 0:00:20.5]} 39.
hxg6 {[%clk 0:00:21.2]} 39... hxg6 {[%clk 0:00:18.5]} 40. e5 {[%clk 0:00:17.3]}
40... Nxe5 {[%clk 0:00:14]} 41. Bxe5 {[%clk 0:00:16.9]} 41... dxe5 {[%clk
0:00:14.9]} 42. Rxc5 {[%clk 0:00:17.5]} 42... Rb2+ {[%clk 0:00:15.6]} 43. Kf3
{[%clk 0:00:17.4]} 43... Rxa2 {[%clk 0:00:15.9]} 44. Rc6+ {[%clk 0:00:17.6]}
44... Kf5 {[%clk 0:00:14.8]} 45. g4+ {[%clk 0:00:16.8]} 45... Kg5 {[%clk
0:00:15.3]} 46. Re6 {[%clk 0:00:17.1]} 46... Ra5 {[%clk 0:00:12.1]} 47. Ke4
{[%clk 0:00:16.1]} 47... Kxg4 {[%clk 0:00:08.1]} 48. Rxg6+ {[%clk 0:00:15.8]}
48... Kh3 {[%clk 0:00:08.1]} 49. Rc6 {[%clk 0:00:13.2]} 49... Kg4 {[%clk
0:00:06.8]} 50. c5 {[%clk 0:00:12.4]} 50... Kg5 {[%clk 0:00:07.2]} 51. Kxe5
{[%clk 0:00:12.8]} 51... Ra1 {[%clk 0:00:06.4]} 52. Rb6 {[%clk 0:00:11]} 52...
a5 {[%clk 0:00:04.6]} 53. c6 {[%clk 0:00:10]} 53... a4 {[%clk 0:00:04.6]} 54. c7
{[%clk 0:00:08.4]} 54... Rc1 {[%clk 0:00:04.8]} 55. Kd6 {[%clk 0:00:08.8]} 55...
a3 {[%clk 0:00:04.7]} 56. Ra6 {[%clk 0:00:06.8]} 56... Kf6 {[%clk 0:00:02]} 57.
Ra8 {[%clk 0:00:02.6]} 57... a2 {[%clk 0:00:01.1]} 58. Rxa2 {[%clk 0:00:01.6]}
58... Rd1+ {[%clk 0:00:01]} 59. Kc6 {[%clk 0:00:02.1]} 59... Ke7 {[%clk
0:00:01.9]} 60. Kb7 {[%clk 0:00:02.7]} 60... Rc1 {[%clk 0:00:02.2]} 61. Kc8
{[%clk 0:00:03.2]} 61... Rc6 {[%clk 0:00:02.3]} 62. Re2+ {[%clk 0:00:03.6]}
62... Kd6 {[%clk 0:00:03.2]} 63. Kd8 {[%clk 0:00:03.6]} 63... Rxc7 {[%clk
0:00:03.6]} 64. Rd2+ {[%clk 0:00:04]} 64... Ke6 {[%clk 0:00:04.2]} 65. Kxc7
{[%clk 0:00:04]} 65... Ke5 {[%clk 0:00:05.1]} 66. Rd6 {[%clk 0:00:04.6]} 66...
Ke4 {[%clk 0:00:04.9]} 67. Kc6 {[%clk 0:00:05.5]} 67... Ke5 {[%clk 0:00:05.7]}
68. Kc5 {[%clk 0:00:06.4]} 68... Ke4 {[%clk 0:00:06.5]} 69. Rd5 {[%clk
0:00:07.3]} 69... Kf4 {[%clk 0:00:07]} 70. Kd4 {[%clk 0:00:07.7]} 70... Kg4
{[%clk 0:00:06.9]} 71. Re5 {[%clk 0:00:08.4]} 71... Kg3 {[%clk 0:00:07.8]} 72.
Ke3 {[%clk 0:00:08.4]} 72... Kg2 {[%clk 0:00:08.2]} 73. Rg5+ {[%clk 0:00:08]}
73... Kf1 {[%clk 0:00:09.1]} 74. Rg6 {[%clk 0:00:08.2]} 74... Ke1 {[%clk
0:00:10]} 75. Rg1# {[%clk 0:00:08.7]} 1-0

[Event "Early-Titled-Tuesday-Blitz-June-18-2024"]
[Site "Chess.com"]
[Date "2024.06.18"]
[Round "4"]
[White "KoshkaMatrioshka"]
[Black "H3nriqueTV"]
[Result "1/2-1/2"]
[WhiteElo "2593"]
[BlackElo "2379"]
[TimeControl "180+1"]
[EndTime "8:42:54 PDT"]
[Termination "Game drawn - insufficient material"]

1. Nf3 {[%clk 0:03:00.9]} 1... d5 {[%clk 0:02:59.3]} 2. b3 {[%clk 0:03:00]} 2...
c6 {[%clk 0:02:59.5]} 3. Bb2 {[%clk 0:03:00.4]} 3... Nf6 {[%clk 0:02:59.5]} 4.
g3 {[%clk 0:03:00.7]} 4... Bf5 {[%clk 0:03:00.1]} 5. Bg2 {[%clk 0:03:01.1]} 5...
e6 {[%clk 0:02:59.9]} 6. O-O {[%clk 0:03:01.2]} 6... a5 {[%clk 0:03:00.4]} 7. a4
{[%clk 0:03:00.9]} 7... h6 {[%clk 0:03:00.4]} 8. d3 {[%clk 0:03:01]} 8... Nbd7
{[%clk 0:03:00.5]} 9. Nbd2 {[%clk 0:03:01.4]} 9... Ke7 {[%clk 0:03:00]} 10. Re1
{[%clk 0:02:54.1]} 10... Ke8 {[%clk 0:02:52.8]} 11. e4 {[%clk 0:02:42.4]} 11...
dxe4 {[%clk 0:02:52.9]} 12. dxe4 {[%clk 0:02:42.1]} 12... Bg6 {[%clk 0:02:50.6]}
13. Nh4 {[%clk 0:02:28.5]} 13... Bh7 {[%clk 0:02:50.4]} 14. Nc4 {[%clk
0:02:08.7]} 14... Nc5 {[%clk 0:02:46.7]} 15. Qe2 {[%clk 0:02:04.5]} 15... Qc7
{[%clk 0:02:46.5]} 16. Be5 {[%clk 0:02:00.6]} 16... Qc8 {[%clk 0:02:43.5]} 17.
Nb6 {[%clk 0:02:00.1]} 17... Qd8 {[%clk 0:02:41.3]} 18. Nxa8 {[%clk 0:02:00.4]}
18... Qxa8 {[%clk 0:02:42.2]} 19. Bxf6 {[%clk 0:00:48.2]} 19... gxf6 {[%clk
0:02:35.4]} 20. e5 {[%clk 0:00:43.5]} 20... f5 {[%clk 0:02:33]} 21. Rad1 {[%clk
0:00:36.9]} 21... Be7 {[%clk 0:02:30.8]} 22. Qe3 {[%clk 0:00:33]} 22... Ne4
{[%clk 0:02:24.9]} 23. Qxh6 {[%clk 0:00:24.1]} 23... Bf8 {[%clk 0:01:27.7]} 24.
Qf4 {[%clk 0:00:19.8]} 24... Be7 {[%clk 0:01:21.9]} 25. Nf3 {[%clk 0:00:18.6]}
25... Qa7 {[%clk 0:01:20.5]} 26. Rf1 {[%clk 0:00:14.8]} 26... Bc5 {[%clk
0:01:18]} 27. Ne1 {[%clk 0:00:09.9]} 27... Bg6 {[%clk 0:01:10.3]} 28. Nd3 {[%clk
0:00:10.2]} 28... Bd4 {[%clk 0:01:08.2]} 29. c3 {[%clk 0:00:08]} 29... Nxc3
{[%clk 0:01:08]} 30. Kh1 {[%clk 0:00:05.2]} 30... Nxd1 {[%clk 0:01:07]} 31. Rxd1
{[%clk 0:00:05.3]} 31... Bc5 {[%clk 0:00:58.9]} 32. h4 {[%clk 0:00:05.5]} 32...
Be7 {[%clk 0:00:58.7]} 33. Bf3 {[%clk 0:00:05.9]} 33... Qb6 {[%clk 0:00:57.2]}
34. Kg2 {[%clk 0:00:06.3]} 34... Qxb3 {[%clk 0:00:56.9]} 35. Qd4 {[%clk
0:00:06.6]} 35... Kf8 {[%clk 0:00:40.3]} 36. Nf4 {[%clk 0:00:06.8]} 36... Kg7
{[%clk 0:00:37.9]} 37. h5 {[%clk 0:00:07]} 37... Rd8 {[%clk 0:00:37.1]} 38. h6+
{[%clk 0:00:06.7]} 38... Kxh6 {[%clk 0:00:36]} 39. Rh1+ {[%clk 0:00:06.5]} 39...
Kg7 {[%clk 0:00:35.6]} 40. Qa1 {[%clk 0:00:05.6]} 40... Bg5 {[%clk 0:00:33.6]}
41. Nxg6 {[%clk 0:00:05.1]} 41... fxg6 {[%clk 0:00:31.2]} 42. Qf1 {[%clk
0:00:03.5]} 42... Rd3 {[%clk 0:00:30.5]} 43. Be2 {[%clk 0:00:03.5]} 43... Rd2
{[%clk 0:00:29.8]} 44. Bf3 {[%clk 0:00:03.5]} 44... Rd3 {[%clk 0:00:30]} 45. Be2
{[%clk 0:00:03.8]} 45... Qd5+ {[%clk 0:00:30.3]} 46. Kg1 {[%clk 0:00:03.7]}
46... Rd2 {[%clk 0:00:30.2]} 47. Rh2 {[%clk 0:00:04.1]} 47... Qe4 {[%clk
0:00:29.3]} 48. Bc4 {[%clk 0:00:03.9]} 48... Qc2 {[%clk 0:00:28]} 49. Kg2 {[%clk
0:00:04.2]} 49... Be3 {[%clk 0:00:26.8]} 50. Kh3 {[%clk 0:00:04]} 50... Bxf2
{[%clk 0:00:25]} 51. Be2 {[%clk 0:00:04.3]} 51... Be3 {[%clk 0:00:24.7]} 52. Rg2
{[%clk 0:00:03]} 52... Bd4 {[%clk 0:00:24.2]} 53. Kh2 {[%clk 0:00:03.6]} 53...
Qe4 {[%clk 0:00:23.4]} 54. g4 {[%clk 0:00:03.7]} 54... Be3 {[%clk 0:00:22.5]}
55. gxf5 {[%clk 0:00:03.4]} 55... exf5 {[%clk 0:00:23.4]} 56. Qf3 {[%clk
0:00:02.8]} 56... Bf4+ {[%clk 0:00:24.3]} 57. Kh3 {[%clk 0:00:02.9]} 57... Qxf3+
{[%clk 0:00:22.2]} 58. Bxf3 {[%clk 0:00:03.8]} 58... Bxe5 {[%clk 0:00:22.6]} 59.
Rxd2 {[%clk 0:00:03.9]} 59... Kf6 {[%clk 0:00:22.3]} 60. Rd7 {[%clk 0:00:04.2]}
60... g5 {[%clk 0:00:23]} 61. Rxb7 {[%clk 0:00:04.6]} 61... g4+ {[%clk
0:00:23.7]} 62. Bxg4 {[%clk 0:00:05.3]} 62... fxg4+ {[%clk 0:00:23.7]} 63. Kxg4
{[%clk 0:00:06.2]} 63... Bc3 {[%clk 0:00:24.3]} 64. Rc7 {[%clk 0:00:06.4]} 64...
Bb4 {[%clk 0:00:24.2]} 65. Rxc6+ {[%clk 0:00:07]} 65... Ke5 {[%clk 0:00:25.1]}
66. Kf3 {[%clk 0:00:07.4]} 66... Kd5 {[%clk 0:00:25.5]} 67. Rc2 {[%clk
0:00:07.1]} 67... Bc5 {[%clk 0:00:25.8]} 68. Ke2 {[%clk 0:00:07.5]} 68... Kd4
{[%clk 0:00:25.9]} 69. Rb2 {[%clk 0:00:06.4]} 69... Kc4 {[%clk 0:00:25.7]} 70.
Rb5 {[%clk 0:00:06.7]} 70... Bb4 {[%clk 0:00:24.6]} 71. Kd1 {[%clk 0:00:06.1]}
71... Kb3 {[%clk 0:00:25.2]} 72. Rb8 {[%clk 0:00:05.6]} 72... Kxa4 {[%clk
0:00:25.3]} 73. Kc2 {[%clk 0:00:06.3]} 73... Ka3 {[%clk 0:00:25.1]} 74. Rc8
{[%clk 0:00:07]} 74... Ka4 {[%clk 0:00:25]} 75. Rg8 {[%clk 0:00:07.8]} 75... Kb5
{[%clk 0:00:25.4]} 76. Rg3 {[%clk 0:00:08.4]} 76... Kc4 {[%clk 0:00:25.7]} 77.
Rg4+ {[%clk 0:00:08.9]} 77... Kb5 {[%clk 0:00:26.1]} 78. Kb3 {[%clk 0:00:09.8]}
78... Bc5 {[%clk 0:00:25]} 79. Rg5 {[%clk 0:00:10.1]} 79... a4+ {[%clk
0:00:24.7]} 80. Kc3 {[%clk 0:00:10.3]} 80... a3 {[%clk 0:00:25.1]} 81. Kb3
{[%clk 0:00:10.6]} 81... Kc6 {[%clk 0:00:24.2]} 82. Kc4 {[%clk 0:00:11.2]} 82...
Bd6 {[%clk 0:00:23.3]} 83. Rg6 {[%clk 0:00:11.8]} 83... a2 {[%clk 0:00:22.8]}
84. Rg1 {[%clk 0:00:09.6]} 84... Be5 {[%clk 0:00:23]} 85. Kb3 {[%clk 0:00:09.4]}
85... a1=Q {[%clk 0:00:22.6]} 86. Rxa1 {[%clk 0:00:10.1]} 86... Bxa1 {[%clk
0:00:22.7]} 1/2-1/2

[Event "Early-Titled-Tuesday-Blitz-June-18-2024"]
[Site "Chess.com"]
[Date "2024.06.18"]
[Round "4"]
[White "ArtemDyachuk"]
[Black "Zhigalko_Sergei"]
[Result "1/2-1/2"]
[WhiteElo "2637"]
[BlackElo "2988"]
[TimeControl "180+1"]
[EndTime "8:42:56 PDT"]
[Termination "Game drawn - insufficient material"]

1. e4 {[%clk 0:03:00.9]} 1... c5 {[%clk 0:03:00.2]} 2. Nf3 {[%clk 0:03:01.3]}
2... d6 {[%clk 0:02:57.4]} 3. d4 {[%clk 0:02:58.8]} 3... cxd4 {[%clk 0:02:58.3]}
4. Nxd4 {[%clk 0:02:59.5]} 4... Nf6 {[%clk 0:02:59]} 5. Nc3 {[%clk 0:02:59.4]}
5... a6 {[%clk 0:02:59.6]} 6. Bc4 {[%clk 0:02:57.6]} 6... e6 {[%clk 0:02:59.4]}
7. Bb3 {[%clk 0:02:55.7]} 7... Nbd7 {[%clk 0:02:59.4]} 8. f3 {[%clk 0:02:53.3]}
8... Nc5 {[%clk 0:02:59.5]} 9. Be3 {[%clk 0:02:53.2]} 9... b5 {[%clk 0:02:42]}
10. Qe2 {[%clk 0:02:52.8]} 10... Bd7 {[%clk 0:02:28.9]} 11. a3 {[%clk 0:02:45]}
11... Rb8 {[%clk 0:02:18.6]} 12. O-O {[%clk 0:02:25.6]} 12... Qc7 {[%clk
0:02:14.2]} 13. Bf2 {[%clk 0:02:10.2]} 13... Be7 {[%clk 0:02:13.5]} 14. f4
{[%clk 0:01:46.8]} 14... h6 {[%clk 0:01:33.9]} 15. Bh4 {[%clk 0:01:11]} 15...
Qb6 {[%clk 0:00:53.8]} 16. Rad1 {[%clk 0:01:10.5]} 16... Nxb3 {[%clk 0:00:41.9]}
17. cxb3 {[%clk 0:01:10.4]} 17... e5 {[%clk 0:00:27.3]} 18. Bxf6 {[%clk
0:01:08.5]} 18... Bxf6 {[%clk 0:00:26.5]} 19. Nd5 {[%clk 0:01:08.2]} 19... Qa7
{[%clk 0:00:26.9]} 20. fxe5 {[%clk 0:00:21.8]} 20... dxe5 {[%clk 0:00:27.8]} 21.
Rxf6 {[%clk 0:00:18.1]} 21... exd4 {[%clk 0:00:08.4]} 22. Rf2 {[%clk 0:00:14.6]}
22... O-O {[%clk 0:00:05.8]} 23. Ne7+ {[%clk 0:00:13.2]} 23... Kh7 {[%clk
0:00:03.9]} 24. Qd3 {[%clk 0:00:13.3]} 24... Rbe8 {[%clk 0:00:03.7]} 25. Nd5
{[%clk 0:00:11.9]} 25... Bg4 {[%clk 0:00:03.5]} 26. Qxd4 {[%clk 0:00:08.4]}
26... Qxd4 {[%clk 0:00:02.1]} 27. Rxd4 {[%clk 0:00:09.3]} 27... Re5 {[%clk
0:00:02.1]} 28. h3 {[%clk 0:00:08.8]} 28... Be6 {[%clk 0:00:02.2]} 29. b4 {[%clk
0:00:06.6]} 29... Rc8 {[%clk 0:00:02.1]} 30. Nc3 {[%clk 0:00:05.8]} 30... Bc4
{[%clk 0:00:01.7]} 31. Rd6 {[%clk 0:00:05.6]} 31... Ra8 {[%clk 0:00:01.7]} 32.
Rd7 {[%clk 0:00:05.6]} 32... Kg8 {[%clk 0:00:01.7]} 33. Nd5 {[%clk 0:00:04.7]}
33... Bxd5 {[%clk 0:00:01.3]} 34. exd5 {[%clk 0:00:04.7]} 34... Re1+ {[%clk
0:00:01.7]} 35. Kh2 {[%clk 0:00:04.7]} 35... Rd1 {[%clk 0:00:02.2]} 36. Rfxf7
{[%clk 0:00:04.2]} 36... Kh8 {[%clk 0:00:01.8]} 37. Rxg7 {[%clk 0:00:04.3]}
37... Rxd5 {[%clk 0:00:01.8]} 38. Rh7+ {[%clk 0:00:04.2]} 38... Kg8 {[%clk
0:00:02.3]} 39. Rhg7+ {[%clk 0:00:03.8]} 39... Kh8 {[%clk 0:00:02.5]} 40. Rh7+
{[%clk 0:00:03.8]} 40... Kg8 {[%clk 0:00:03]} 41. Rxd5 {[%clk 0:00:04.4]} 41...
Kxh7 {[%clk 0:00:03.3]} 42. Rd6 {[%clk 0:00:04.7]} 42... Kg7 {[%clk 0:00:01.6]}
43. g4 {[%clk 0:00:05.2]} 43... a5 {[%clk 0:00:01.8]} 44. bxa5 {[%clk
0:00:03.8]} 44... Rc8 {[%clk 0:00:02.2]} 45. a6 {[%clk 0:00:03.2]} 45... Rc2+
{[%clk 0:00:02.7]} 46. Kg3 {[%clk 0:00:03.5]} 46... Rxb2 {[%clk 0:00:03.6]} 47.
a7 {[%clk 0:00:03.7]} 47... Rb3+ {[%clk 0:00:04.1]} 48. Kh4 {[%clk 0:00:03.2]}
48... Rxa3 {[%clk 0:00:04.9]} 49. Rd7+ {[%clk 0:00:03.6]} 49... Kg6 {[%clk
0:00:05.4]} 50. Rb7 {[%clk 0:00:03.3]} 50... b4 {[%clk 0:00:05.9]} 51. Rb6+
{[%clk 0:00:01.7]} 51... Kg7 {[%clk 0:00:05.9]} 52. Rb7+ {[%clk 0:00:02.2]}
52... Kg6 {[%clk 0:00:06]} 53. Rb6+ {[%clk 0:00:02.5]} 53... Kg7 {[%clk
0:00:06.1]} 54. Rxb4 {[%clk 0:00:03.1]} 54... Rxa7 {[%clk 0:00:06.2]} 55. Rf4
{[%clk 0:00:03.6]} 55... Kg6 {[%clk 0:00:06.2]} 56. Rd4 {[%clk 0:00:03.3]} 56...
Ra6 {[%clk 0:00:06.6]} 57. Rd5 {[%clk 0:00:02.8]} 57... Rb6 {[%clk 0:00:06.5]}
58. Kg3 {[%clk 0:00:02.9]} 58... Rb3+ {[%clk 0:00:06.4]} 59. Kh4 {[%clk
0:00:03.3]} 59... Rb6 {[%clk 0:00:06.3]} 60. Rd2 {[%clk 0:00:03.9]} 60... Ra6
{[%clk 0:00:06.3]} 61. Rf2 {[%clk 0:00:04]} 61... Rb6 {[%clk 0:00:06.4]} 62. Rf3
{[%clk 0:00:03.7]} 62... Ra6 {[%clk 0:00:06.5]} 63. Kg3 {[%clk 0:00:04.2]} 63...
h5 {[%clk 0:00:06.5]} 64. Rf4 {[%clk 0:00:02.8]} 64... Ra3+ {[%clk 0:00:06]} 65.
Kh4 {[%clk 0:00:02.7]} 65... hxg4 {[%clk 0:00:06.2]} 66. hxg4 {[%clk 0:00:01.3]}
66... Ra6 {[%clk 0:00:06]} 67. Rb4 {[%clk 0:00:01.6]} 67... Rc6 {[%clk 0:00:06]}
68. g5 {[%clk 0:00:01.7]} 68... Rd6 {[%clk 0:00:05.7]} 69. Kg4 {[%clk
0:00:02.1]} 69... Rc6 {[%clk 0:00:06.1]} 70. Re4 {[%clk 0:00:02]} 70... Rb6
{[%clk 0:00:06.3]} 71. Kf4 {[%clk 0:00:02.6]} 71... Ra6 {[%clk 0:00:06.7]} 72.
Rd4 {[%clk 0:00:02.6]} 72... Rb6 {[%clk 0:00:06.9]} 73. Kg4 {[%clk 0:00:03.2]}
73... Ra6 {[%clk 0:00:07.2]} 74. Kh4 {[%clk 0:00:03.8]} 74... Rb6 {[%clk
0:00:07.5]} 75. Rf4 {[%clk 0:00:04.3]} 75... Ra6 {[%clk 0:00:07.6]} 76. Rg4
{[%clk 0:00:04.7]} 76... Rb6 {[%clk 0:00:07.6]} 77. Rd4 {[%clk 0:00:04.5]} 77...
Ra6 {[%clk 0:00:07.7]} 78. Rf4 {[%clk 0:00:05.1]} 78... Rb6 {[%clk 0:00:07.7]}
79. Rf6+ {[%clk 0:00:05.6]} 79... Rxf6 {[%clk 0:00:07.7]} 80. gxf6 {[%clk
0:00:06.5]} 80... Kxf6 {[%clk 0:00:08.6]} 1/2-1/2